[Event "*** Titled Tuesday Blitz"]
[Site "Chess.com"]
[Date "2019.10.01"]
[Round "10"]
[White "Andrei_Belozerov"]
[Black "Mr_Sinigami"]
[Result "1/2-1/2"]
[WhiteElo "2530"]
[BlackElo "2421"]
[TimeControl "180+2"]
[EndTime "15:28:50 PDT"]
[Termination "Game drawn - insufficient material"]

1. e4 {[%clk 0:03:01.9]} 1... d5 {[%clk 0:02:59.8]} 2. exd5 {[%clk 0:03:02.6]}
2... Nf6 {[%clk 0:02:55.4]} 3. Nf3 {[%clk 0:03:02.7]} 3... Nxd5 {[%clk
0:02:55.7]} 4. d4 {[%clk 0:03:02.6]} 4... g6 {[%clk 0:02:56.3]} 5. c4 {[%clk
0:03:02.4]} 5... Nb6 {[%clk 0:02:57]} 6. Nc3 {[%clk 0:03:03.9]} 6... Bg7 {[%clk
0:02:57.6]} 7. c5 {[%clk 0:03:05]} 7... Nd5 {[%clk 0:02:57.7]} 8. Bc4 {[%clk
0:03:05.2]} 8... c6 {[%clk 0:02:58.9]} 9. Qb3 {[%clk 0:03:03.1]} 9... O-O {[%clk
0:02:57]} 10. O-O {[%clk 0:03:03.1]} 10... Nxc3 {[%clk 0:02:49.2]} 11. bxc3
{[%clk 0:03:03.2]} 11... b5 {[%clk 0:02:49.9]} 12. cxb6 {[%clk 0:03:03.1]} 12...
axb6 {[%clk 0:02:50.2]} 13. Re1 {[%clk 0:03:04.3]} 13... b5 {[%clk 0:02:48]} 14.
Bf1 {[%clk 0:03:01.7]} 14... Be6 {[%clk 0:02:42]} 15. Rxe6 {[%clk 0:03:01.6]}
15... fxe6 {[%clk 0:02:42.5]} 16. Qxe6+ {[%clk 0:03:02.4]} 16... Kh8 {[%clk
0:02:42.9]} 17. Bg5 {[%clk 0:02:56.4]} 17... Qd6 {[%clk 0:02:29.3]} 18. Qxd6
{[%clk 0:02:50.5]} 18... exd6 {[%clk 0:02:28.2]} 19. Be7 {[%clk 0:02:51.9]}
19... Re8 {[%clk 0:02:23.5]} 20. Bxd6 {[%clk 0:02:53.2]} 20... Nd7 {[%clk
0:02:24.4]} 21. Bd3 {[%clk 0:02:23.1]} 21... Re6 {[%clk 0:02:23.1]} 22. Bg3
{[%clk 0:02:15.7]} 22... Nb6 {[%clk 0:02:18.5]} 23. Ne5 {[%clk 0:02:12.6]} 23...
Nd5 {[%clk 0:02:17.6]} 24. Be4 {[%clk 0:02:07.1]} 24... Nxc3 {[%clk 0:02:12.6]}
25. Bxc6 {[%clk 0:02:07.7]} 25... Rxa2 {[%clk 0:02:10.9]} 26. Rxa2 {[%clk
0:02:07.6]} 26... Nxa2 {[%clk 0:02:06.4]} 27. Bxb5 {[%clk 0:02:00]} 27... Rb6
{[%clk 0:01:59.5]} 28. Bf1 {[%clk 0:01:56.9]} 28... Rb1 {[%clk 0:01:57.3]} 29.
f3 {[%clk 0:01:51.1]} 29... Nc3 {[%clk 0:01:02.6]} 30. Kf2 {[%clk 0:01:51.4]}
30... Kg8 {[%clk 0:00:50]} 31. Bc4+ {[%clk 0:01:48.3]} 31... Kf8 {[%clk
0:00:50.6]} 32. Ke3 {[%clk 0:01:39.4]} 32... Ke7 {[%clk 0:00:43.6]} 33. Bh4+
{[%clk 0:01:34.9]} 33... Kd6 {[%clk 0:00:39.7]} 34. Nf7+ {[%clk 0:01:34.4]}
34... Kc6 {[%clk 0:00:40]} 35. Ne5+ {[%clk 0:01:27]} 35... Kd6 {[%clk
0:00:36.1]} 36. Bg3 {[%clk 0:01:27.5]} 36... Ke7 {[%clk 0:00:30.5]} 37. d5
{[%clk 0:01:22.5]} 37... Nb5 {[%clk 0:00:27.9]} 38. Nc6+ {[%clk 0:01:20.8]}
38... Kd7 {[%clk 0:00:26.6]} 39. Bf4 {[%clk 0:01:02.7]} 39... Nd6 {[%clk
0:00:26.5]} 40. Bd3 {[%clk 0:01:03.1]} 40... Rb3 {[%clk 0:00:25.9]} 41. g4
{[%clk 0:01:01.7]} 41... Bb2 {[%clk 0:00:22.6]} 42. Ke2 {[%clk 0:00:52.8]} 42...
Bc3 {[%clk 0:00:23.3]} 43. Ne5+ {[%clk 0:00:48]} 43... Ke7 {[%clk 0:00:21.3]}
44. Bg5+ {[%clk 0:00:48.6]} 44... Ke8 {[%clk 0:00:21.9]} 45. Nc4 {[%clk
0:00:45.7]} 45... Kd7 {[%clk 0:00:19.7]} 46. Nxd6 {[%clk 0:00:40]} 46... Kxd6
{[%clk 0:00:20.4]} 47. Bc4 {[%clk 0:00:41.5]} 47... Rb2+ {[%clk 0:00:20.4]} 48.
Kd3 {[%clk 0:00:42.9]} 48... Be5 {[%clk 0:00:21.1]} 49. f4 {[%clk 0:00:43.6]}
49... Bg7 {[%clk 0:00:22]} 50. h4 {[%clk 0:00:43.8]} 50... Rg2 {[%clk
0:00:21.9]} 51. f5 {[%clk 0:00:41.3]} 51... Rxg4 {[%clk 0:00:18.9]} 52. fxg6
{[%clk 0:00:33.7]} 52... hxg6 {[%clk 0:00:19.7]} 53. Bb3 {[%clk 0:00:25.5]}
53... Be5 {[%clk 0:00:19.3]} 54. Ke2 {[%clk 0:00:23.4]} 54... Rb4 {[%clk
0:00:18.5]} 55. Bc2 {[%clk 0:00:23.5]} 55... Bg3 {[%clk 0:00:19.1]} 56. Bxg6
{[%clk 0:00:23.1]} 56... Bxh4 {[%clk 0:00:20]} 57. Bxh4 {[%clk 0:00:23.4]} 57...
Rxh4 {[%clk 0:00:20.9]} 58. Bf7 {[%clk 0:00:24.2]} 58... Rf4 {[%clk 0:00:21.4]}
59. Be6 {[%clk 0:00:25]} 59... Re4+ {[%clk 0:00:22]} 60. Kd3 {[%clk 0:00:25.2]}
60... Rxe6 {[%clk 0:00:23.9]} 61. dxe6 {[%clk 0:00:25.7]} 61... Kxe6 {[%clk
0:00:25.8]} 1/2-1/2

[Event "*** Titled Tuesday Blitz"]
[Site "Chess.com"]
[Date "2019.10.01"]
[Round "10"]
[White "swayamsm"]
[Black "Sajkochess"]
[Result "1-0"]
[WhiteElo "2460"]
[BlackElo "2270"]
[TimeControl "180+2"]
[EndTime "15:28:59 PDT"]
[Termination "swayamsm won by resignation"]

1. d4 {[%clk 0:03:01.9]} 1... Nf6 {[%clk 0:03:00.5]} 2. Nf3 {[%clk 0:03:01.7]}
2... e6 {[%clk 0:02:58.8]} 3. Bf4 {[%clk 0:02:59.8]} 3... c5 {[%clk 0:02:58.8]}
4. e3 {[%clk 0:02:59.7]} 4... cxd4 {[%clk 0:02:58]} 5. Nxd4 {[%clk 0:03:00.2]}
5... a6 {[%clk 0:02:52.4]} 6. Nc3 {[%clk 0:03:00.4]} 6... Nc6 {[%clk 0:02:49.7]}
7. Bg3 {[%clk 0:02:42.9]} 7... d5 {[%clk 0:02:44.1]} 8. Be2 {[%clk 0:02:40.6]}
8... Bd6 {[%clk 0:02:44.4]} 9. O-O {[%clk 0:02:38.6]} 9... e5 {[%clk 0:02:44.8]}
10. Nxc6 {[%clk 0:02:33.5]} 10... bxc6 {[%clk 0:02:46.7]} 11. f4 {[%clk
0:02:31.7]} 11... e4 {[%clk 0:02:36.5]} 12. f5 {[%clk 0:02:32.7]} 12... Bxg3
{[%clk 0:02:29.4]} 13. hxg3 {[%clk 0:02:34.6]} 13... Qb6 {[%clk 0:02:29.7]} 14.
Qd4 {[%clk 0:02:34.7]} 14... Qxd4 {[%clk 0:02:23.8]} 15. exd4 {[%clk 0:02:36.6]}
15... Rb8 {[%clk 0:02:10.4]} 16. Na4 {[%clk 0:02:34.9]} 16... a5 {[%clk
0:02:03.5]} 17. b3 {[%clk 0:02:34]} 17... Ke7 {[%clk 0:02:00.3]} 18. Rac1 {[%clk
0:02:31.1]} 18... Kd6 {[%clk 0:01:52.6]} 19. g4 {[%clk 0:02:31.9]} 19... h6
{[%clk 0:01:52.5]} 20. Kf2 {[%clk 0:02:32.7]} 20... Bd7 {[%clk 0:01:44]} 21. Ke3
{[%clk 0:02:32.4]} 21... Rhf8 {[%clk 0:01:33.8]} 22. Nc5 {[%clk 0:02:31.8]}
22... g6 {[%clk 0:01:24.6]} 23. fxg6 {[%clk 0:01:54.3]} 23... fxg6 {[%clk
0:01:24.2]} 24. Rh1 {[%clk 0:01:54.8]} 24... Rh8 {[%clk 0:01:13.4]} 25. Rcf1
{[%clk 0:01:42.5]} 25... Rbf8 {[%clk 0:01:12.1]} 26. g5 {[%clk 0:01:43.4]} 26...
Ng4+ {[%clk 0:00:44.5]} 27. Bxg4 {[%clk 0:01:41.7]} 27... Bxg4 {[%clk
0:00:46.3]} 28. Rxf8 {[%clk 0:01:36.5]} 28... Rxf8 {[%clk 0:00:45.4]} 29. Rxh6
{[%clk 0:01:19.2]} 29... Bh5 {[%clk 0:00:41]} 30. g4 {[%clk 0:01:19.7]} 30...
Bxg4 {[%clk 0:00:40.9]} 31. Rxg6+ {[%clk 0:01:19]} 31... Kc7 {[%clk 0:00:41.8]}
32. Rg7+ {[%clk 0:01:20.1]} 32... Kc8 {[%clk 0:00:35.8]} 33. Re7 {[%clk
0:01:13.9]} 33... Rf3+ {[%clk 0:00:35.3]} 34. Kd2 {[%clk 0:01:14.3]} 34... Rf2+
{[%clk 0:00:36.1]} 35. Kc3 {[%clk 0:01:11.4]} 35... Bd1 {[%clk 0:00:33]} 36. Kb2
{[%clk 0:01:09.4]} 36... Rxc2+ {[%clk 0:00:32.8]} 37. Ka3 {[%clk 0:01:10.7]}
37... Rg2 {[%clk 0:00:33.5]} 38. Ne6 {[%clk 0:01:07]} 38... e3 {[%clk
0:00:24.4]} 39. Nf4 {[%clk 0:00:46.6]} 39... Rg4 {[%clk 0:00:20.8]} 40. g6
{[%clk 0:00:43.9]} 40... Rxf4 {[%clk 0:00:18.9]} 41. g7 {[%clk 0:00:44.3]} 41...
Rg4 {[%clk 0:00:18.6]} 42. Re8+ {[%clk 0:00:43.5]} 42... Kd7 {[%clk 0:00:19.3]}
43. g8=Q {[%clk 0:00:45.4]} 43... Rxg8 {[%clk 0:00:19.7]} 44. Rxg8 {[%clk
0:00:47.3]} 44... e2 {[%clk 0:00:20.7]} 45. Rg1 {[%clk 0:00:48.1]} 45... Ke6
{[%clk 0:00:21]} 46. Kb2 {[%clk 0:00:49.4]} 46... Kf5 {[%clk 0:00:21.7]} 47. Kc3
{[%clk 0:00:50.6]} 47... Kf4 {[%clk 0:00:22.9]} 48. Kd2 {[%clk 0:00:51.5]} 48...
Kf3 {[%clk 0:00:23.9]} 49. Ke1 {[%clk 0:00:51]} 49... Ke4 {[%clk 0:00:24.5]} 50.
Rg6 {[%clk 0:00:47]} 50... Kxd4 {[%clk 0:00:21]} 51. Rxc6 {[%clk 0:00:48]} 51...
Ke3 {[%clk 0:00:20.2]} 52. Re6+ {[%clk 0:00:48]} 52... Kd3 {[%clk 0:00:20.9]}
53. Re5 {[%clk 0:00:46.8]} 53... d4 {[%clk 0:00:21.8]} 54. Rxa5 {[%clk
0:00:46.9]} 54... Kc3 {[%clk 0:00:22.2]} 55. Rc5+ {[%clk 0:00:45.3]} 55... Kb2
{[%clk 0:00:21.6]} 56. b4 {[%clk 0:00:43.6]} 56... d3 {[%clk 0:00:19.4]} 57. b5
{[%clk 0:00:43.7]} 57... Bc2 {[%clk 0:00:20.1]} 58. Kd2 {[%clk 0:00:42.2]} 58...
e1=Q+ {[%clk 0:00:09.2]} 59. Kxe1 {[%clk 0:00:42.8]} 59... Kc1 {[%clk
0:00:11.1]} 60. Rd5 {[%clk 0:00:44.1]} 60... Ba4 {[%clk 0:00:07.1]} 61. b6
{[%clk 0:00:41.9]} 61... Bc6 {[%clk 0:00:02.8]} 62. Rc5+ {[%clk 0:00:42.8]}
62... Kb2 {[%clk 0:00:04.7]} 63. Rxc6 {[%clk 0:00:44.1]} 63... d2+ {[%clk
0:00:05.8]} 64. Kxd2 {[%clk 0:00:45.6]} 1-0

[Event "*** Titled Tuesday Blitz"]
[Site "Chess.com"]
[Date "2019.10.01"]
[Round "10"]
[White "MathiasWomacka"]
[Black "Alex_32167"]
[Result "0-1"]
[WhiteElo "2303"]
[BlackElo "2625"]
[TimeControl "180+2"]
[EndTime "15:29:00 PDT"]
[Termination "Alex_32167 won on time"]

1. e4 {[%clk 0:03:01.9]} 1... d5 {[%clk 0:03:01.2]} 2. exd5 {[%clk 0:03:01.9]}
2... Nf6 {[%clk 0:03:02.2]} 3. Nf3 {[%clk 0:03:00]} 3... Nxd5 {[%clk 0:03:03.2]}
4. d4 {[%clk 0:03:01]} 4... Bf5 {[%clk 0:03:04.1]} 5. Bd3 {[%clk 0:02:59.5]}
5... Bxd3 {[%clk 0:03:04.9]} 6. Qxd3 {[%clk 0:03:01.4]} 6... Nd7 {[%clk
0:03:06.8]} 7. O-O {[%clk 0:03:01.5]} 7... e6 {[%clk 0:03:08]} 8. c4 {[%clk
0:03:02.3]} 8... N5f6 {[%clk 0:03:09.2]} 9. Nc3 {[%clk 0:03:03.5]} 9... Bb4
{[%clk 0:03:10.3]} 10. Bg5 {[%clk 0:03:02.4]} 10... O-O {[%clk 0:03:10.7]} 11.
Rad1 {[%clk 0:03:02.3]} 11... h6 {[%clk 0:03:10.1]} 12. Bh4 {[%clk 0:03:02.5]}
12... c6 {[%clk 0:03:10.5]} 13. Ne5 {[%clk 0:02:46.7]} 13... Qa5 {[%clk
0:03:07.3]} 14. f4 {[%clk 0:02:34.8]} 14... Bxc3 {[%clk 0:03:03.1]} 15. bxc3
{[%clk 0:02:36.7]} 15... c5 {[%clk 0:02:33.4]} 16. d5 {[%clk 0:02:33.2]} 16...
Rad8 {[%clk 0:02:15.1]} 17. Nxd7 {[%clk 0:02:03.9]} 17... Rxd7 {[%clk
0:02:14.4]} 18. Bxf6 {[%clk 0:02:04.9]} 18... gxf6 {[%clk 0:02:15.2]} 19. f5
{[%clk 0:01:57.4]} 19... exd5 {[%clk 0:02:12.1]} 20. cxd5 {[%clk 0:01:57.8]}
20... c4 {[%clk 0:02:12.3]} 21. Qd4 {[%clk 0:01:49.7]} 21... Qb6 {[%clk
0:02:10.4]} 22. Qxb6 {[%clk 0:01:49.8]} 22... axb6 {[%clk 0:02:11.5]} 23. Rd4
{[%clk 0:01:50]} 23... Rfd8 {[%clk 0:02:08.5]} 24. Rfd1 {[%clk 0:01:31.9]} 24...
b5 {[%clk 0:02:08.9]} 25. d6 {[%clk 0:01:33.2]} 25... Ra8 {[%clk 0:02:09.2]} 26.
R1d2 {[%clk 0:01:23.2]} 26... Ra6 {[%clk 0:02:05.7]} 27. Rd5 {[%clk 0:01:19]}
27... Ra3 {[%clk 0:01:53.7]} 28. Rc2 {[%clk 0:01:16.4]} 28... b6 {[%clk
0:01:45]} 29. Kf2 {[%clk 0:01:15.7]} 29... Kf8 {[%clk 0:01:43]} 30. Ke3 {[%clk
0:01:16.7]} 30... b4 {[%clk 0:01:43.5]} 31. Kd4 {[%clk 0:01:17.1]} 31... b3
{[%clk 0:01:42.2]} 32. axb3 {[%clk 0:01:13.9]} 32... cxb3 {[%clk 0:01:42.6]} 33.
Rb2 {[%clk 0:01:13]} 33... Ra2 {[%clk 0:01:35.8]} 34. Rxb3 {[%clk 0:01:13.5]}
34... Rd2+ {[%clk 0:01:34.8]} 35. Kc4 {[%clk 0:01:02.8]} 35... Rxd6 {[%clk
0:01:33.5]} 36. Rxd6 {[%clk 0:01:03]} 36... Rxd6 {[%clk 0:01:34.2]} 37. Ra3
{[%clk 0:00:55.3]} 37... Rd2 {[%clk 0:01:31.9]} 38. Ra6 {[%clk 0:00:51.6]} 38...
Rb2 {[%clk 0:01:28.9]} 39. g4 {[%clk 0:00:49.5]} 39... Kg7 {[%clk 0:01:12.8]}
40. h3 {[%clk 0:00:40.4]} 40... h5 {[%clk 0:01:11.2]} 41. gxh5 {[%clk
0:00:33.8]} 41... Kh6 {[%clk 0:01:11.8]} 42. Ra7 {[%clk 0:00:34.3]} 42... Kxh5
{[%clk 0:01:09]} 43. Rxf7 {[%clk 0:00:34.7]} 43... Kg5 {[%clk 0:01:10.2]} 44.
Rb7 {[%clk 0:00:31.5]} 44... Kxf5 {[%clk 0:01:08.6]} 45. Kd5 {[%clk 0:00:32.6]}
45... Kg5 {[%clk 0:01:02.9]} 46. Rg7+ {[%clk 0:00:19.6]} 46... Kf4 {[%clk
0:00:57.3]} 47. h4 {[%clk 0:00:19.1]} 47... f5 {[%clk 0:00:51.9]} 48. h5 {[%clk
0:00:19.7]} 48... Rh2 {[%clk 0:00:52]} 49. Rb7 {[%clk 0:00:19.8]} 49... Rxh5
{[%clk 0:00:51]} 50. Rxb6 {[%clk 0:00:20.5]} 50... Kf3 {[%clk 0:00:48.1]} 51.
Rf6 {[%clk 0:00:17.2]} 51... f4+ {[%clk 0:00:47.9]} 52. Kd6 {[%clk 0:00:18.5]}
52... Ra5 {[%clk 0:00:41]} 53. c4 {[%clk 0:00:19.2]} 53... Ra6+ {[%clk
0:00:41.6]} 54. Ke5 {[%clk 0:00:20.6]} 54... Rxf6 {[%clk 0:00:43.5]} 55. Kxf6
{[%clk 0:00:22]} 55... Ke4 {[%clk 0:00:44.2]} 56. c5 {[%clk 0:00:23.3]} 56...
Kd5 {[%clk 0:00:43.6]} 57. Kf5 {[%clk 0:00:21.2]} 57... f3 {[%clk 0:00:44.5]}
0-1

[Event "*** Titled Tuesday Blitz"]
[Site "Chess.com"]
[Date "2019.10.01"]
[Round "10"]
[White "VincentKeymer"]
[Black "Olga_Girya"]
[Result "1/2-1/2"]
[WhiteElo "2584"]
[BlackElo "2493"]
[TimeControl "180+2"]
[EndTime "15:29:13 PDT"]
[Termination "Game drawn - insufficient material"]

1. Nf3 {[%clk 0:03:01.9]} 1... d5 {[%clk 0:03:00.9]} 2. e3 {[%clk 0:03:02.9]}
2... Nf6 {[%clk 0:03:00.9]} 3. c4 {[%clk 0:03:04]} 3... c6 {[%clk 0:03:01.4]} 4.
Nc3 {[%clk 0:03:04.9]} 4... e6 {[%clk 0:03:01.9]} 5. b3 {[%clk 0:03:04.5]} 5...
Bd6 {[%clk 0:03:01.9]} 6. Bb2 {[%clk 0:03:05.1]} 6... O-O {[%clk 0:03:03.2]} 7.
Qc2 {[%clk 0:03:02.7]} 7... e5 {[%clk 0:03:04.2]} 8. cxd5 {[%clk 0:03:01.5]}
8... cxd5 {[%clk 0:03:05.4]} 9. Nb5 {[%clk 0:03:02.8]} 9... Nc6 {[%clk
0:03:06.6]} 10. Nxd6 {[%clk 0:03:02.7]} 10... Qxd6 {[%clk 0:03:07.7]} 11. Be2
{[%clk 0:02:56.2]} 11... Nb4 {[%clk 0:02:42.5]} 12. Qb1 {[%clk 0:02:48.7]} 12...
Re8 {[%clk 0:02:38.6]} 13. a3 {[%clk 0:02:48.5]} 13... Nc6 {[%clk 0:02:36.7]}
14. O-O {[%clk 0:02:49.5]} 14... Bg4 {[%clk 0:02:35.3]} 15. h3 {[%clk
0:02:45.4]} 15... Bh5 {[%clk 0:02:31.9]} 16. Qd1 {[%clk 0:02:38.6]} 16... d4
{[%clk 0:02:18]} 17. Nxd4 {[%clk 0:02:26.6]} 17... Nxd4 {[%clk 0:02:00.8]} 18.
Bxh5 {[%clk 0:02:23.7]} 18... Nxh5 {[%clk 0:01:01.4]} 19. exd4 {[%clk 0:02:05]}
19... Nf4 {[%clk 0:01:01.5]} 20. dxe5 {[%clk 0:02:04.6]} 20... Qd5 {[%clk
0:00:51.3]} 21. Qg4 {[%clk 0:01:30.9]} 21... Nd3 {[%clk 0:00:51.4]} 22. Bc3
{[%clk 0:01:27.8]} 22... Nxe5 {[%clk 0:00:49.2]} 23. Qg3 {[%clk 0:01:21.7]}
23... Re6 {[%clk 0:00:30.4]} 24. Rae1 {[%clk 0:00:28]} 24... Rae8 {[%clk
0:00:30.8]} 25. f4 {[%clk 0:00:28.1]} 25... Ng6 {[%clk 0:00:22.1]} 26. Rxe6
{[%clk 0:00:27.7]} 26... fxe6 {[%clk 0:00:16.6]} 27. b4 {[%clk 0:00:26.8]} 27...
Rf8 {[%clk 0:00:14.4]} 28. Qe3 {[%clk 0:00:26.4]} 28... b6 {[%clk 0:00:14.1]}
29. Kh2 {[%clk 0:00:19.6]} 29... Rf7 {[%clk 0:00:15.1]} 30. Rf2 {[%clk
0:00:20.4]} 30... Qd6 {[%clk 0:00:15.2]} 31. g3 {[%clk 0:00:21.5]} 31... Qd5
{[%clk 0:00:14.1]} 32. Re2 {[%clk 0:00:22.6]} 32... Nf8 {[%clk 0:00:15.1]} 33.
Qe4 {[%clk 0:00:23.4]} 33... Rd7 {[%clk 0:00:15.6]} 34. Qxd5 {[%clk 0:00:24.3]}
34... Rxd5 {[%clk 0:00:16.7]} 35. Kg2 {[%clk 0:00:25.2]} 35... Kf7 {[%clk
0:00:18.2]} 36. Kf3 {[%clk 0:00:26.4]} 36... g6 {[%clk 0:00:16.5]} 37. Re5
{[%clk 0:00:26.7]} 37... Rxe5 {[%clk 0:00:14.9]} 38. Bxe5 {[%clk 0:00:27.3]}
38... b5 {[%clk 0:00:12.9]} 39. Ke4 {[%clk 0:00:28.3]} 39... Nd7 {[%clk
0:00:13]} 40. d4 {[%clk 0:00:29.6]} 40... Nb6 {[%clk 0:00:14]} 41. g4 {[%clk
0:00:22.6]} 41... Nc4 {[%clk 0:00:13.5]} 42. d5 {[%clk 0:00:22.7]} 42... Nxa3
{[%clk 0:00:09.6]} 43. Bb8 {[%clk 0:00:19.5]} 43... a6 {[%clk 0:00:09.5]} 44.
dxe6+ {[%clk 0:00:18.6]} 44... Kxe6 {[%clk 0:00:10.3]} 45. f5+ {[%clk
0:00:20.1]} 45... gxf5+ {[%clk 0:00:11.6]} 46. gxf5+ {[%clk 0:00:21.5]} 46...
Kf7 {[%clk 0:00:12.4]} 47. Be5 {[%clk 0:00:21.5]} 47... Nc4 {[%clk 0:00:13.2]}
48. Bd4 {[%clk 0:00:22.7]} 48... a5 {[%clk 0:00:14.3]} 49. bxa5 {[%clk
0:00:23.8]} 49... Nxa5 {[%clk 0:00:15.6]} 50. Bc3 {[%clk 0:00:25.1]} 50... Nc6
{[%clk 0:00:14.9]} 51. Kd5 {[%clk 0:00:24.7]} 51... b4 {[%clk 0:00:12.7]} 52.
Bb2 {[%clk 0:00:22.2]} 52... Ne7+ {[%clk 0:00:06.6]} 53. Ke4 {[%clk 0:00:23.2]}
53... Nc6 {[%clk 0:00:03.9]} 54. h4 {[%clk 0:00:24.3]} 54... h5 {[%clk
0:00:03.9]} 55. Ba1 {[%clk 0:00:21.6]} 55... Na5 {[%clk 0:00:05.3]} 56. Kd5
{[%clk 0:00:21.9]} 56... Nb3 {[%clk 0:00:06.5]} 57. Bb2 {[%clk 0:00:22.5]} 57...
Nd2 {[%clk 0:00:08]} 58. Kc5 {[%clk 0:00:20.4]} 58... b3 {[%clk 0:00:07.4]} 59.
Kd5 {[%clk 0:00:20.9]} 59... Nf3 {[%clk 0:00:07.9]} 60. Kc4 {[%clk 0:00:22.1]}
60... Nxh4 {[%clk 0:00:08.9]} 61. Kxb3 {[%clk 0:00:23.4]} 61... Nxf5 {[%clk
0:00:09.7]} 62. Kc2 {[%clk 0:00:24.7]} 62... Kg6 {[%clk 0:00:10]} 63. Be5 {[%clk
0:00:24.9]} 63... Kg5 {[%clk 0:00:10.7]} 64. Kd2 {[%clk 0:00:26]} 64... Kg4
{[%clk 0:00:11.9]} 65. Ke2 {[%clk 0:00:27.4]} 65... Kh3 {[%clk 0:00:10.5]} 66.
Kf2 {[%clk 0:00:27.3]} 66... h4 {[%clk 0:00:10.8]} 67. Bf6 {[%clk 0:00:27.2]}
67... Kg4 {[%clk 0:00:11.1]} 68. Bxh4 {[%clk 0:00:27.9]} 1/2-1/2

[Event "*** Titled Tuesday Blitz"]
[Site "Chess.com"]
[Date "2019.10.01"]
[Round "10"]
[White "chess4life23"]
[Black "Marreuh"]
[Result "1-0"]
[WhiteElo "2381"]
[BlackElo "2100"]
[TimeControl "180+2"]
[EndTime "15:29:43 PDT"]
[Termination "chess4life23 won on time"]

1. d4 {[%clk 0:03:01.9]} 1... Nf6 {[%clk 0:03:00.7]} 2. c4 {[%clk 0:03:02.7]}
2... e6 {[%clk 0:03:02.3]} 3. Nf3 {[%clk 0:03:03.6]} 3... d5 {[%clk 0:02:59.7]}
4. Nc3 {[%clk 0:03:04.4]} 4... dxc4 {[%clk 0:02:59.9]} 5. e3 {[%clk 0:03:05.3]}
5... a6 {[%clk 0:02:57.9]} 6. a4 {[%clk 0:03:00.2]} 6... c5 {[%clk 0:02:49.6]}
7. Bxc4 {[%clk 0:03:01.2]} 7... Nc6 {[%clk 0:02:48.4]} 8. O-O {[%clk 0:03:01.9]}
8... cxd4 {[%clk 0:02:45.2]} 9. exd4 {[%clk 0:03:02.2]} 9... Be7 {[%clk
0:02:39.3]} 10. Bg5 {[%clk 0:03:01.6]} 10... O-O {[%clk 0:02:38.9]} 11. Re1
{[%clk 0:03:01.2]} 11... Nb4 {[%clk 0:02:39.2]} 12. Qe2 {[%clk 0:02:59.8]} 12...
Nfd5 {[%clk 0:02:16.4]} 13. Ne4 {[%clk 0:02:06.7]} 13... Bxg5 {[%clk 0:02:10.6]}
14. Nexg5 {[%clk 0:02:06.5]} 14... h6 {[%clk 0:02:10.6]} 15. Ne4 {[%clk
0:02:07.1]} 15... Nf6 {[%clk 0:01:46.4]} 16. Rad1 {[%clk 0:01:44.2]} 16... Bd7
{[%clk 0:01:40.3]} 17. Nc5 {[%clk 0:01:27.6]} 17... Bc6 {[%clk 0:01:33.9]} 18.
Ne5 {[%clk 0:01:21.9]} 18... Qc7 {[%clk 0:01:13.8]} 19. Nxf7 {[%clk 0:01:12.6]}
19... Rxf7 {[%clk 0:01:13.1]} 20. Nxe6 {[%clk 0:01:13.2]} 20... Qd6 {[%clk
0:00:41.1]} 21. d5 {[%clk 0:00:38.2]} 21... Bxa4 {[%clk 0:00:34]} 22. b3 {[%clk
0:00:35.8]} 22... Bb5 {[%clk 0:00:34.4]} 23. Nd4 {[%clk 0:00:28]} 23... Bxc4
{[%clk 0:00:33.1]} 24. bxc4 {[%clk 0:00:29.9]} 24... Re8 {[%clk 0:00:26.1]} 25.
Ne6 {[%clk 0:00:30.4]} 25... b5 {[%clk 0:00:20.8]} 26. Qf1 {[%clk 0:00:04.2]}
26... bxc4 {[%clk 0:00:18]} 27. Qxc4 {[%clk 0:00:06.1]} 27... Nbxd5 {[%clk
0:00:16.7]} 28. Nd4 {[%clk 0:00:02.5]} 28... Rxe1+ {[%clk 0:00:16.6]} 29. Rxe1
{[%clk 0:00:04.4]} 29... Kh7 {[%clk 0:00:08.6]} 30. Nf5 {[%clk 0:00:05.6]} 30...
Qc7 {[%clk 0:00:06.3]} 31. Qd3 {[%clk 0:00:06.7]} 31... Qc3 {[%clk 0:00:06.3]}
32. Qb1 {[%clk 0:00:07.5]} 32... g6 {[%clk 0:00:06]} 33. Ng3 {[%clk 0:00:07.9]}
33... Ng4 {[%clk 0:00:04.8]} 34. Rf1 {[%clk 0:00:06.1]} 34... Qc6 {[%clk
0:00:02.7]} 35. Ne4 {[%clk 0:00:06.9]} 35... Qe6 {[%clk 0:00:03.5]} 36. f3
{[%clk 0:00:06.6]} 36... Ngf6 {[%clk 0:00:04.8]} 37. Ng3 {[%clk 0:00:06.5]}
37... Qb6+ {[%clk 0:00:05.9]} 38. Kh1 {[%clk 0:00:07.4]} 38... Qxb1 {[%clk
0:00:06.4]} 39. Rxb1 {[%clk 0:00:08.2]} 39... Ra7 {[%clk 0:00:07.6]} 40. Ne2
{[%clk 0:00:06.8]} 40... a5 {[%clk 0:00:08.9]} 41. Nd4 {[%clk 0:00:08.7]} 41...
a4 {[%clk 0:00:10.3]} 42. Ra1 {[%clk 0:00:09.1]} 42... a3 {[%clk 0:00:11.5]} 43.
Nb5 {[%clk 0:00:10.7]} 43... Ra5 {[%clk 0:00:10.2]} 44. Nxa3 {[%clk 0:00:11.3]}
44... Nf4 {[%clk 0:00:06.6]} 45. Nc2 {[%clk 0:00:12.2]} 45... Rxa1+ {[%clk
0:00:07.1]} 46. Nxa1 {[%clk 0:00:14.1]} 46... g5 {[%clk 0:00:07.9]} 47. Nc2
{[%clk 0:00:15.5]} 47... N6d5 {[%clk 0:00:08.6]} 48. Kg1 {[%clk 0:00:15.5]}
48... Kg6 {[%clk 0:00:09.2]} 49. Kf2 {[%clk 0:00:16.8]} 49... Kf5 {[%clk
0:00:10.4]} 50. g3 {[%clk 0:00:16.5]} 50... Nd3+ {[%clk 0:00:11]} 51. Ke2 {[%clk
0:00:16.7]} 51... Ne5 {[%clk 0:00:11.7]} 52. Nd4+ {[%clk 0:00:17.3]} 52... Kf6
{[%clk 0:00:12]} 53. Kf2 {[%clk 0:00:18]} 53... Nb4 {[%clk 0:00:11.3]} 54. Ke3
{[%clk 0:00:17.3]} 54... Nd5+ {[%clk 0:00:09.9]} 55. Ke4 {[%clk 0:00:17]} 55...
Ne7 {[%clk 0:00:09.8]} 56. h3 {[%clk 0:00:17.5]} 56... N7c6 {[%clk 0:00:08.3]}
57. Ne2 {[%clk 0:00:17.5]} 57... Nd8 {[%clk 0:00:07.2]} 58. f4 {[%clk
0:00:18.7]} 58... gxf4 {[%clk 0:00:07.6]} 59. Nxf4 {[%clk 0:00:20.5]} 59... Ng6
{[%clk 0:00:08.1]} 60. Nd5+ {[%clk 0:00:19.5]} 60... Kg5 {[%clk 0:00:07.9]} 61.
Ne3 {[%clk 0:00:17.9]} 61... Nf7 {[%clk 0:00:07.5]} 62. h4+ {[%clk 0:00:18]}
62... Kf6 {[%clk 0:00:08]} 63. Ng4+ {[%clk 0:00:17.3]} 63... Kg7 {[%clk
0:00:09.2]} 64. Kf5 {[%clk 0:00:14.4]} 64... Ne7+ {[%clk 0:00:09.4]} 65. Ke6
{[%clk 0:00:13.5]} 65... h5 {[%clk 0:00:09.4]} 66. Ne3 {[%clk 0:00:13]} 66...
Ng6 {[%clk 0:00:07]} 67. Kf5 {[%clk 0:00:11.3]} 67... Kh6 {[%clk 0:00:05.3]} 68.
Nc4 {[%clk 0:00:07.1]} 1-0